bitfinex/quotes_BTCUSD_20240617
["timestamp","ask_amount","ask_price","bid_price","bid_amount"]
[1718621778360,1.73743184,65870.0,65869.0,0.00085]
[1718621779030,1.73843184,65870.0,65869.0,0.00085]
[1718621779243,1.66543184,65870.0,65869.0,0.00085]
[1718621779458,1.75243184,65870.0,65869.0,0.00085]
[1718621784095,1.7703974,65870.0,65869.0,0.00085]
[1718621789690,0.05898361,65870.0,65869.0,0.14055]
[1718621789903,0.05898361,65870.0,65869.0,0.595998]
[1718621789904,0.04101805,65870.0,65869.0,0.595998]
[1718621790111,0.151792,65880.0,65874.0,0.151802]
[1718621790341,0.303573,65882.0,65877.0,0.146]
[1718621790562,0.303569,65883.0,65879.0,0.146]
[1718621790767,0.303569,65883.0,65878.0,0.12602185]
[1718621790768,0.151788,65881.0,65880.0,0.27202185]
[1718621790971,0.758942,65881.0,65880.0,0.27202185]
[1718621791199,0.758942,65881.0,65880.0,0.17795636]
[1718621791437,0.758942,65881.0,65880.0,0.146]
[1718621791438,0.455365,65881.0,65880.0,0.146]
[1718621791862,0.073,65882.0,65881.0,0.0794]
[1718621791863,0.151786,65882.0,65881.0,0.0794]
[1718621792064,0.004,65883.0,65882.0,0.1401]
[1718621792065,0.76292,65883.0,65882.0,0.1401]
[1718621792312,0.151784,65883.0,65882.0,0.1401]
[1718621792546,1.13853189,65883.0,65882.0,0.1401]
[1718621792819,1.13853189,65883.0,65882.0,0.15411]
[1718621793331,1.062488,65883.0,65882.0,0.15411]
[1718621793563,1.082488,65883.0,65882.0,0.15411]
[1718621794029,1.082488,65883.0,65869.0,0.15293779]
[1718621794030,1.082537,65880.0,65879.0,0.0628]
[1718621794257,1.082537,65880.0,65869.0,0.00085]
[1718621794258,0.75907,65870.0,65869.0,0.00085]
[1718621794468,1.135698,65870.0,65869.0,0.00085]
[1718621794674,1.235698,65870.0,65869.0,0.00085]
[1718621795730,1.235698,65870.0,65869.0,0.00285]
[1718621797115,1.539326,65870.0,65869.0,0.00285]
[1718621797317,1.539326,65870.0,65869.0,0.00585]
[1718621797527,1.466326,65870.0,65869.0,0.00585]
[1718621797726,1.47482358,65870.0,65869.0,0.00585]
[1718621799088,1.49482358,65870.0,65869.0,0.00585]
[1718621799731,1.92375158,65870.0,65869.0,0.00585]
[1718621799920,1.98445158,65870.0,65869.0,0.00585]
[1718621800142,1.68082358,65870.0,65869.0,0.00285]
[1718621800352,1.69020658,65870.0,65869.0,0.00285]
[1718621800559,1.69820658,65870.0,65869.0,0.00385]
[1718621800762,1.69820658,65870.0,65869.0,0.00185]
[1718621800975,1.7299682,65870.0,65869.0,0.00185]
[1718621801196,1.7219682,65870.0,65869.0,0.00085]
[1718621801354,1.6466682,65870.0,65869.0,0.00085]
[1718621801552,1.6676682,65870.0,65869.0,0.00185]
[1718621802656,1.6069682,65870.0,65869.0,0.00185]
[1718621803506,1.5869682,65870.0,65869.0,0.00185]
[1718621803832,1.73662358,65870.0,65869.0,0.00185]
[1718621803976,1.6006672,65870.0,65869.0,0.00185]
[1718621804784,1.5506672,65870.0,65869.0,0.00185]
[1718621804985,1.6006672,65870.0,65869.0,0.00185]
[1718621806203,1.6015172,65870.0,65869.0,0.00185]
[1718621811662,1.5921342,65870.0,65869.0,0.00185]
[1718621811877,1.5921342,65870.0,65869.0,0.06505]
[1718621811878,1.2185062,65870.0,65869.0,0.06505]
[1718621812019,1.2185062,65870.0,65869.0,0.14205]
[1718621812772,1.5221342,65870.0,65869.0,0.14205]
[1718621813192,1.58758092,65870.0,65869.0,0.14205]
[1718621813400,1.5421342,65870.0,65869.0,0.14205]
[1718621819574,1.6152342,65870.0,65869.0,0.14205]
[1718621819977,1.6152342,65870.0,65869.0,0.00185]
[1718621820191,1.66068092,65870.0,65869.0,0.00185]
[1718621821768,1.6152342,65870.0,65869.0,0.00185]
[1718621825530,1.2185062,65870.0,65869.0,0.00185]
[1718621825737,1.5952342,65870.0,65869.0,0.00185]
[1718621825956,1.6152342,65870.0,65869.0,0.00185]
[1718621827962,1.61505148,65870.0,65869.0,0.00185]
[1718621830483,1.63879613,65870.0,65869.0,0.00185]
[1718621833685,1.56569613,65870.0,65869.0,0.00185]
[1718621833873,1.26206813,65870.0,65869.0,0.00185]
[1718621834077,1.33516813,65870.0,65869.0,0.00185]
[1718621834285,1.38061702,65870.0,65869.0,0.00185]
[1718621834482,1.63879613,65870.0,65869.0,0.00185]
[1718621836509,1.7069727,65870.0,65869.0,0.00185]
[1718621836718,1.4033447,65870.0,65869.0,0.00185]
[1718621837352,1.7069727,65870.0,65869.0,0.00185]
[1718621837939,1.63879613,65870.0,65869.0,0.00185]
[1718621838333,1.75242375,65870.0,65869.0,0.00185]
[1718621838560,2.09321154,65870.0,65869.0,0.00185]
[1718621838768,2.07958392,65870.0,65869.0,0.00185]
[1718621839408,2.21622618,65870.0,65869.0,0.00185]
[1718621840266,2.11622618,65870.0,65869.0,0.00185]
[1718621840499,2.07958392,65870.0,65869.0,0.00185]
[1718621841046,2.38321192,65870.0,65869.0,0.00185]
[1718621844108,0.17,65868.0,65867.0,0.009383]
[1718621844312,1.35647365,65868.0,65867.0,0.009383]
[1718621844523,1.36493606,65868.0,65867.0,0.009383]
[1718621844727,1.66857306,65868.0,65867.0,0.009383]
[1718621844925,1.97221006,65868.0,65867.0,0.009383]
[1718621845134,1.97221006,65868.0,65855.0,0.1429]
[1718621845135,0.02,65856.0,65855.0,0.1429]
[1718621845374,1.459714,65856.0,65855.0,0.1429]
[1718621845684,1.87186841,65856.0,65855.0,0.1429]
[1718621846466,1.96291559,65856.0,65855.0,0.1429]
[1718621846871,1.87286841,65856.0,65855.0,0.1429]
[1718621847045,1.56917641,65856.0,65855.0,0.1429]
[1718621847672,1.63745076,65856.0,65855.0,0.1429]
[1718621849053,1.56917641,65856.0,65855.0,0.1429]
[1718621849466,1.63743442,65856.0,65855.0,0.1429]
[1718621849642,1.63743442,65856.0,65855.0,0.16947927]
[1718621850451,1.56917641,65856.0,65855.0,0.16947927]
[1718621850674,1.63742636,65856.0,65855.0,0.16947927]
[1718621851534,1.63742636,65856.0,65855.0,0.18935981]
[1718621852776,1.63742636,65856.0,65855.0,0.1429]
[1718621853279,1.56917641,65856.0,65855.0,0.1429]
[1718621856736,1.61465133,65856.0,65855.0,0.1429]
[1718621858755,1.56917641,65856.0,65855.0,0.1429]
[1718621858981,1.6146467,65856.0,65855.0,0.1429]
[1718621859184,1.56917641,65856.0,65855.0,0.1429]
[1718621860021,1.6146467,65856.0,65855.0,0.1429]
[1718621862348,1.56917641,65856.0,65855.0,0.1429]
[1718621862545,1.61464635,65856.0,65855.0,0.1429]
[1718621863865,1.386659,65854.0,65851.0,0.1419]
[1718621864073,1.39495922,65854.0,65851.0,0.1419]
[1718621864595,1.59495922,65854.0,65851.0,0.1419]
[1718621864990,1.66316509,65854.0,65851.0,0.1419]
[1718621865636,1.56316509,65854.0,65851.0,0.1419]
[1718621865856,1.57216509,65854.0,65851.0,0.1419]
[1718621866263,1.58516509,65854.0,65851.0,0.1419]
[1718621867092,1.58516509,65854.0,65839.0,0.00853]
[1718621867093,1.98886709,65854.0,65847.0,0.0787]
[1718621867302,1.51695922,65854.0,65847.0,0.0787]
[1718621867525,1.59005922,65854.0,65847.0,0.0787]
[1718621867699,1.88476122,65854.0,65847.0,0.0787]
[1718621868096,1.89676122,65854.0,65847.0,0.0787]
[1718621869786,1.59305922,65854.0,65847.0,0.0787]
[1718621869989,1.66125583,65854.0,65847.0,0.0787]
[1718621870374,1.96495783,65854.0,65847.0,0.0787]
[1718621870737,1.89676122,65854.0,65847.0,0.0787]
[1718621872180,1.90363122,65854.0,65847.0,0.0787]
[1718621872794,1.90363122,65854.0,65853.0,0.00931412]
[1718621873416,1.92738305,65854.0,65853.0,0.00931412]
[1718621875333,2.33108505,65854.0,65853.0,0.00931412]
[1718621875537,2.02738305,65854.0,65853.0,0.00931412]
[1718621875739,2.11832421,65854.0,65853.0,0.00931412]
[1718621876126,2.09332421,65854.0,65853.0,0.00931412]
[1718621876572,2.10732421,65854.0,65853.0,0.00931412]
[1718621876989,2.09332421,65854.0,65853.0,0.00931412]
[1718621877201,2.10732421,65854.0,65853.0,0.00931412]
[1718621877634,2.12032421,65854.0,65853.0,0.00931412]
[1718621878030,2.10732421,65854.0,65853.0,0.00931412]
[1718621878371,2.12132421,65854.0,65853.0,0.00931412]
[1718621878578,2.02132421,65854.0,65853.0,0.00931412]
[1718621879296,1.93038305,65854.0,65853.0,0.00931412]
[1718621879500,2.03038305,65854.0,65853.0,0.00931412]
[1718621881349,2.53617284,65854.0,65853.0,1.2e-07]
[1718621881587,2.64984929,65854.0,65853.0,1.2e-07]
[1718621881733,2.53617284,65854.0,65853.0,1.2e-07]
[1718621883048,2.52217284,65854.0,65853.0,1.2e-07]
[1718621883252,2.58617284,65854.0,65853.0,1.2e-07]
[1718621883665,2.57217284,65854.0,65853.0,1.2e-07]
[1718621884059,2.58617284,65854.0,65853.0,1.2e-07]
[1718621884383,2.57217284,65854.0,65853.0,1.2e-07]
[1718621884584,2.58617284,65854.0,65853.0,1.2e-07]
[1718621885380,0.02,65840.0,65839.0,0.15113]
[1718621885583,1.11835776,65840.0,65839.0,1e-06]
[1718621885731,2.00790327,65840.0,65839.0,1e-06]
[1718621885935,2.5016803,65840.0,65839.0,1e-06]
[1718621886553,2.5674803,65840.0,65839.0,1e-06]
[1718621886760,2.5174803,65840.0,65839.0,1e-06]
[1718621887171,2.63118219,65840.0,65839.0,1e-06]
[1718621887370,2.61142507,65840.0,65839.0,1e-06]
[1718621887545,2.61142507,65840.0,65835.0,1e-06]
[1718621887546,2.219902,65836.0,65835.0,1e-06]
[1718621887753,2.56884908,65836.0,65835.0,1e-06]
[1718621887963,2.46884908,65836.0,65835.0,1e-06]
[1718621888153,2.47710547,65836.0,65835.0,1e-06]
[1718621888335,2.55334618,65836.0,65835.0,1e-06]
[1718621888534,2.66706432,65836.0,65835.0,1e-06]
[1718621889005,2.34270562,65836.0,65835.0,1e-06]
[1718621889242,1.53928839,65836.0,65835.0,1e-06]
[1718621889480,1.53928839,65836.0,65835.0,0.143101]
[1718621889481,1.56238839,65836.0,65835.0,0.143101]
[1718621889704,1.61238839,65836.0,65835.0,0.143101]
[1718621890377,1.63238839,65836.0,65835.0,0.143101]
[1718621890602,1.56238839,65836.0,65835.0,0.143101]
[1718621891252,1.57638839,65836.0,65835.0,0.143101]
[1718621891464,1.56238839,65836.0,65835.0,0.143101]
[1718621891669,1.27260339,65836.0,65835.0,0.143101]
[1718621891875,1.57638839,65836.0,65835.0,0.143101]
[1718621892085,1.54838839,65836.0,65835.0,0.143101]
[1718621892521,1.56238839,65836.0,65835.0,0.143101]
[1718621892777,1.58238839,65836.0,65835.0,0.143101]
[1718621893401,1.56238839,65836.0,65835.0,0.143101]
[1718621893601,1.59638839,65836.0,65835.0,0.143101]
[1718621894278,1.61793794,65836.0,65835.0,0.143101]
[1718621895917,1.24105294,65836.0,65835.0,0.143101]
[1718621896360,0.22969954,65836.0,65835.0,0.143101]
[1718621896592,0.49193339,65836.0,65835.0,0.143101]
[1718621896824,0.79571839,65836.0,65835.0,0.143101]
[1718621897244,1.09950339,65836.0,65835.0,0.143101]
[1718621897483,1.07150339,65836.0,65835.0,0.143101]
[1718621897693,1.07850339,65836.0,65835.0,0.1583494]
[1718621898146,1.07150339,65836.0,65835.0,0.1583494]
[1718621898371,1.38128839,65836.0,65835.0,0.143101]
[1718621898584,1.38328839,65836.0,65835.0,0.143101]
[1718621898802,1.41885451,65836.0,65835.0,0.143101]
[1718621899689,1.51885451,65836.0,65835.0,0.143101]
[1718621900765,1.21506951,65836.0,65835.0,0.143101]
[1718621901005,1.21606951,65836.0,65835.0,0.1583494]
[1718621901217,0.91028451,65836.0,65835.0,0.1583494]
[1718621901418,0.98238451,65836.0,65835.0,0.1583494]
[1718621901591,0.98738451,65836.0,65835.0,0.143101]
[1718621902017,1.29298669,65836.0,65835.0,0.143101]
[1718621902301,1.30098669,65836.0,65835.0,0.143101]
[1718621902519,0.99020169,65836.0,65835.0,0.143101]
[1718621903667,0.98220169,65836.0,65835.0,0.143101]
[1718621903869,1.29598669,65836.0,65835.0,0.143101]
[1718621904079,0.99220169,65836.0,65835.0,0.143101]
[1718621904719,0.99220169,65836.0,65835.0,0.1583494]
[1718621905354,0.51531669,65836.0,65835.0,0.1583494]
[1718621905603,0.21153169,65836.0,65835.0,0.1583494]
[1718621905815,0.47393339,65836.0,65835.0,0.1583494]
[1718621906241,0.51577057,65836.0,65835.0,0.1583494]
[1718621906684,0.51577057,65836.0,65835.0,0.143101]
[1718621907135,0.47393339,65836.0,65835.0,0.163101]
[1718621907348,0.47393339,65836.0,65835.0,0.143101]
[1718621910252,0.47393339,65836.0,65835.0,0.163101]
[1718621910662,0.17014839,65836.0,65835.0,0.163101]
[1718621911630,0.17014839,65836.0,65835.0,0.19554]
[1718621912334,0.17014839,65836.0,65835.0,0.163101]
[1718621912991,0.01825639,65836.0,65835.0,0.163101]
[1718621913200,0.01825639,65836.0,65835.0,1.57762353]
[1718621913412,0.01,65836.0,65835.0,1.29683453]
[1718621913606,0.01,65836.0,65835.0,1.74303798]
[1718621913808,0.01,65836.0,65835.0,1.43924898]
[1718621914028,0.00093501,65840.0,65839.0,0.475656]
[1718621914229,0.00093501,65840.0,65839.0,0.96521753]
[1718621914470,0.00093501,65840.0,65839.0,0.98821753]
[1718621914698,0.00093501,65840.0,65839.0,1.13259673]
[1718621914921,0.00093501,65840.0,65839.0,0.75572573]
[1718621915321,0.00093501,65840.0,65839.0,0.75672573]
[1718621915524,0.00093501,65840.0,65839.0,0.75772573]
[1718621917353,0.00093501,65840.0,65839.0,0.75771624]
[1718621920037,0.00093501,65840.0,65839.0,0.56283124]
[1718621920208,0.45658401,65840.0,65839.0,0.29238779]
[1718621920545,0.46483665,65840.0,65839.0,0.29238779]
[1718621920769,0.46483665,65840.0,65839.0,0.1403]
[1718621920770,0.16107065,65840.0,65839.0,0.1403]
[1718621921172,0.00918765,65840.0,65839.0,0.1403]
[1718621921376,0.46483665,65840.0,65839.0,0.1724575]
[1718621925639,0.46483665,65840.0,65839.0,0.80020129]
[1718621925640,0.00918765,65840.0,65839.0,0.80020129]
[1718621925846,0.00918765,65840.0,65839.0,1.12697229]
[1718621926057,0.00093501,65840.0,65839.0,1.12697229]
[1718621926419,0.00093501,65840.0,65839.0,0.82320129]
[1718621927961,0.00093501,65840.0,65839.0,0.94926523]
[1718621928170,0.00093501,65840.0,65839.0,0.82320129]
[1718621928373,0.00093501,65840.0,65839.0,1.12697229]
[1718621929963,0.00093501,65840.0,65839.0,1.25303161]
[1718621932851,0.00093501,65840.0,65839.0,1.27100635]
[1718621933987,0.15281801,65840.0,65839.0,0.52979158]
[1718621934198,0.46487003,65840.0,65839.0,0.48679158]
[1718621934406,0.46487003,65840.0,65839.0,0.48857935]
[1718621934615,0.46487003,65840.0,65839.0,0.33027935]
[1718621934823,1.07240203,65840.0,65839.0,0.12805932]
[1718621935049,1.13510203,65840.0,65839.0,0.12805932]
[1718621935257,1.17696206,65840.0,65839.0,0.12805932]
[1718621935887,1.17696206,65840.0,65839.0,0.14180365]
[1718621936094,1.17696206,65840.0,65839.0,0.14080365]
[1718621936302,1.17696206,65840.0,65839.0,0.13980365]
[1718621936503,1.26006206,65840.0,65839.0,0.14080365]
[1718621936814,1.25906206,65840.0,65839.0,0.14080365]
[1718621937125,1.25916799,65840.0,65839.0,0.14080365]
[1718621937350,1.26716799,65840.0,65839.0,0.14180365]
[1718621937562,1.19406799,65840.0,65839.0,0.14180365]
[1718621937765,0.89030199,65840.0,65839.0,0.14180365]
[1718621937914,0.96340199,65840.0,65839.0,0.14180365]
[1718621939134,0.90070199,65840.0,65839.0,0.12805932]
[1718621939452,0.85873603,65840.0,65839.0,0.12805932]
[1718621939658,0.90074006,65840.0,65839.0,0.12807855]
[1718621940049,0.78563603,65840.0,65839.0,0.12807855]
[1718621940257,0.02622103,65840.0,65839.0,0.57095134]
[1718621940456,0.02622103,65840.0,65839.0,0.50100583]
[1718621940655,0.01793501,65840.0,65839.0,0.48100583]
[1718621941034,0.02617611,65840.0,65839.0,0.48100583]
[1718621941423,0.17805911,65840.0,65839.0,0.48099854]
[1718621941624,0.16905911,65840.0,65839.0,0.47999854]
[1718621941794,0.16105911,65840.0,65839.0,0.47899854]
[1718621941998,0.16405911,65840.0,65839.0,0.47899854]
[1718621942140,0.16605911,65840.0,65839.0,0.47899854]
[1718621943081,0.46982511,65840.0,65839.0,0.47899854]
[1718621943283,0.46982511,65840.0,65839.0,0.68630516]
[1718621944548,1.15045711,65840.0,65839.0,0.12607126]
[1718621944798,1.19239856,65840.0,65839.0,0.12607126]
[1718621946019,1.11929856,65840.0,65839.0,0.12607126]
[1718621946226,0.81553256,65840.0,65839.0,0.12607126]
[1718621946433,0.51176656,65840.0,65839.0,0.15786227]
[1718621946635,0.46982511,65840.0,65839.0,0.15786227]
[1718621947754,0.46982511,65840.0,65839.0,0.17786227]
[1718621948737,0.01417611,65840.0,65839.0,0.17786227]
[1718621948944,0.01417611,65840.0,65839.0,0.30995006]
[1718621948945,0.16605911,65840.0,65839.0,0.30995006]
[1718621949114,0.46982511,65840.0,65839.0,0.30995006]
[1718621950253,0.46982511,65840.0,65839.0,0.51725973]
[1718621950432,0.46982511,65840.0,65839.0,0.53725973]
[1718621951228,0.46982511,65840.0,65839.0,0.51725973]
[1718621951649,0.46982511,65840.0,65839.0,0.53725973]
[1718621951911,0.46982511,65840.0,65839.0,0.51725973]
[1718621952242,0.46982511,65840.0,65839.0,0.51726032]
[1718621952808,0.46982511,65840.0,65839.0,0.53726032]
[1718621953420,0.46982511,65840.0,65839.0,0.32994907]
[1718621953647,0.46982511,65840.0,65839.0,0.53726321]
[1718621953849,0.01417611,65840.0,65839.0,0.32994907]
[1718621954253,0.01417611,65840.0,65839.0,0.5372616]
[1718621954595,0.16405911,65840.0,65839.0,0.5372616]
[1718621954800,0.16105911,65840.0,65839.0,0.5372616]
[1718621955012,0.16105911,65840.0,65839.0,0.5402616]
[1718621955422,0.00917611,65840.0,65839.0,0.5402616]
[1718621955649,0.16105911,65840.0,65839.0,0.5402616]
[1718621956280,0.00917611,65840.0,65839.0,0.6823616]
[1718621958211,0.16105911,65840.0,65839.0,0.6623616]
[1718621960658,0.30145911,65840.0,65839.0,0.3363828]
[1718621960775,0.84169111,65840.0,65839.0,0.12907027]
[1718621961151,0.76859111,65840.0,65839.0,0.12907027]
[1718621963743,0.81030738,65840.0,65839.0,0.12907027]
[1718621963952,0.05089238,65840.0,65839.0,0.45284127]
[1718621964156,0.05089238,65840.0,65839.0,0.66045906]
[1718621964157,0.00917611,65840.0,65839.0,0.66045906]
[1718621964366,0.00093501,65840.0,65839.0,0.34530306]
[1718621964573,0.00917871,65840.0,65839.0,0.34530306]
[1718621965600,0.00093501,65840.0,65839.0,0.95304685]
[1718621966012,0.00093501,65840.0,65839.0,0.85658199]
[1718621966229,0.00093501,65840.0,65839.0,1.44591526]
[1718621967046,0.00093501,65840.0,65839.0,1.44590169]
[1718621967882,0.00093501,65840.0,65839.0,1.13074758]
[1718621968089,0.00093501,65840.0,65839.0,1.44589785]
[1718621970680,0.00093501,65840.0,65839.0,1.13074758]
[1718621970882,0.00093501,65840.0,65839.0,1.74966891]
[1718621971107,0.00093501,65840.0,65839.0,1.89325738]
[1718621971310,0.00093501,65840.0,65839.0,1.84080327]
[1718621971472,0.00093501,65840.0,65839.0,1.8932721]
[1718621971690,0.00093501,65840.0,65839.0,1.82313774]
[1718621971887,0.00093501,65840.0,65839.0,1.99525243]
[1718621972292,0.00093501,65840.0,65839.0,1.99529634]
[1718621972521,0.00093501,65840.0,65839.0,1.9417836]
[1718621972742,0.00093501,65840.0,65839.0,1.99431145]
[1718621972918,0.00093501,65840.0,65839.0,1.9457836]
[1718621973093,0.00093501,65840.0,65839.0,1.8457836]
[1718621973297,0.00093501,65840.0,65839.0,1.77366891]
[1718621973498,0.00093501,65840.0,65839.0,1.8417836]
[1718621973697,0.00193501,65840.0,65839.0,1.8487836]
[1718621973924,0.00293501,65840.0,65839.0,1.8597836]
[1718621975157,0.00293501,65840.0,65839.0,1.79166891]
[1718621975525,0.00293501,65840.0,65839.0,1.87767736]
[1718621975724,0.00293501,65840.0,65839.0,2.61929805]
[1718621975853,0.00293501,65840.0,65839.0,2.64200951]
[1718621976772,0.00193501,65840.0,65839.0,2.63100951]
[1718621976981,0.00093501,65840.0,65839.0,2.62000951]
[1718621977206,0.00293501,65840.0,65839.0,2.53145224]
[1718621978276,0.00293501,65840.0,65839.0,2.31841982]
[1718621978484,0.00293501,65840.0,65839.0,2.39151982]
[1718621978684,0.00293501,65840.0,65839.0,2.29151982]
[1718621978905,0.00293501,65840.0,65839.0,2.39151982]
[1718621979302,0.00293501,65840.0,65839.0,2.29151982]
[1718621979437,0.00293501,65840.0,65839.0,2.26883433]
[1718621979779,0.00293501,65840.0,65839.0,1.88566267]
[1718621980872,0.00687,65854.0,65853.0,0.927265]
[1718621981079,0.00687,65854.0,65853.0,1.33113942]
[1718621981291,0.00687,65854.0,65853.0,1.63484542]
[1718621981490,0.00687,65854.0,65853.0,1.82393562]
[1718621981695,0.00687,65854.0,65853.0,1.63484542]
[1718621981900,0.00687,65854.0,65853.0,1.92393562]
[1718621982117,0.00687,65854.0,65853.0,1.73884542]
[1718621983588,0.00687,65854.0,65853.0,1.73484542]
[1718621983821,0.00687,65854.0,65853.0,1.64584542]
[1718621984030,0.00687,65854.0,65853.0,1.64884542]
[1718621984767,0.00687,65854.0,65853.0,1.64584542]
[1718621985190,0.00687,65854.0,65853.0,2.41055142]
[1718621985390,0.00687,65854.0,65853.0,2.34128388]
[1718621985801,0.00687,65854.0,65853.0,1.8535517]
[1718621986017,0.00687,65854.0,65853.0,1.42253342]
[1718621986231,0.00687,65854.0,65853.0,1.44072097]
[1718621986433,0.00687,65854.0,65853.0,1.83342697]
[1718621986653,0.00687,65854.0,65853.0,2.13713297]
[1718621986851,0.00687,65854.0,65853.0,2.31522317]
[1718621987055,0.00687,65854.0,65853.0,2.34322317]
[1718621987300,0.00687,65854.0,65853.0,2.00988529]
[1718621987504,0.00687,65854.0,65853.0,2.14009109]
[1718621987918,0.00687,65854.0,65853.0,2.32912037]
[1718621988501,0.00687,65854.0,65853.0,1.95761963]
[1718621988694,0.00687,65854.0,65853.0,1.76859035]
[1718621988976,0.00687,65854.0,65853.0,1.86859035]
[1718621990322,0.00687,65854.0,65853.0,2.17229635]
[1718621990516,0.00687,65854.0,65853.0,1.86859035]
[1718621990912,0.00687,65854.0,65853.0,1.76859035]
[1718621991300,0.00687,65854.0,65853.0,2.17229635]
[1718621991523,0.00687,65854.0,65853.0,2.05761963]
[1718621991727,0.00687,65854.0,65853.0,1.86859035]
[1718621992083,0.00687,65854.0,65853.0,2.05761963]
[1718621992797,0.00687,65854.0,65853.0,1.88451963]
[1718621993001,0.00687,65854.0,65853.0,1.76859035]
[1718621993202,0.00687,65854.0,65853.0,1.95761963]
[1718621993461,0.00687,65854.0,65853.0,1.93943335]
[1718621994218,0.00687,65854.0,65853.0,0.97725591]
[1718621994446,0.01399917,65854.0,65853.0,1.28469807]
[1718621994650,0.00687,65854.0,65853.0,1.27069807]
[1718621994816,0.01399917,65854.0,65853.0,1.37639807]
[1718621995025,0.00687,65854.0,65853.0,1.37639807]
[1718621995543,0.00687,65854.0,65853.0,1.39039807]
[1718621996724,0.00687,65854.0,65853.0,1.37639807]
[1718621997184,0.00687,65854.0,65853.0,1.39039807]
[1718621998190,0.00687,65854.0,65853.0,1.40858563]
[1718621998543,0.00687,65854.0,65853.0,2.75215361]
[1718621998770,0.00085,65865.0,65864.0,0.96414]
[1718621998976,0.00085,65865.0,65864.0,1.43834731]
[1718621999804,0.00085,65865.0,65864.0,1.86018352]
[1718622000036,0.00085,65865.0,65864.0,1.45652752]
[1718622000240,0.00085,65865.0,65864.0,1.36524731]
[1718622000443,0.00085,65865.0,65864.0,1.56615055]
[1718622000689,0.00085,65865.0,65864.0,1.44305055]
[1718622000928,0.00085,65865.0,65864.0,0.42591055]
[1718622000929,0.152675,65865.0,65864.0,0.42591055]
[1718622001107,0.759977,65865.0,65864.0,0.40591055]
[1718622001345,0.759977,65865.0,65864.0,0.41691055]
[1718622001568,0.759977,65865.0,65864.0,0.13701952]
[1718622001569,1.272128,65865.0,65864.0,0.13701952]
[1718622001756,1.272128,65865.0,65864.0,0.011]
[1718622001963,0.968477,65865.0,65864.0,0.011]
[1718622002306,1.272128,65865.0,65864.0,0.13702842]
[1718622002531,1.272128,65865.0,65864.0,0.14702842]
[1718622002735,1.272128,65865.0,65864.0,0.15073126]
[1718622003356,0.819255,65854.0,65853.0,0.01820526]
[1718622003536,0.515553,65854.0,65853.0,0.27812164]
[1718622003952,0.06,65854.0,65853.0,0.27812164]
[1718622004212,0.06,65854.0,65853.0,0.36012473]
[1718622004413,0.515553,65854.0,65853.0,0.36012517]
[1718622004528,0.515553,65854.0,65853.0,0.38312517]
[1718622004529,0.211851,65854.0,65853.0,0.38312517]
[1718622004739,0.211851,65854.0,65853.0,0.41712517]
[1718622004740,0.06,65854.0,65853.0,0.41712517]
[1718622004973,0.15185,65855.0,65853.0,0.41712517]
[1718622005181,0.15185,65855.0,65854.0,0.35683958]
[1718622006457,0.455547,65855.0,65854.0,0.35683958]
[1718622007028,0.15185,65855.0,65854.0,0.35683958]
[1718622007527,0.15185,65855.0,65854.0,0.36883958]
[1718622007893,0.15185,65855.0,65854.0,0.38083958]
[1718622010537,0.455547,65855.0,65854.0,0.38083958]
[1718622010728,0.15185,65855.0,65854.0,0.38083958]
[1718622010935,0.759244,65855.0,65854.0,0.22875179]
[1718622011136,1.199341,65855.0,65854.0,0.15003429]
[1718622011360,0.591947,65855.0,65854.0,0.15003429]
[1718622012667,0.895644,65855.0,65854.0,0.15003429]
[1718622013627,0.591947,65855.0,65854.0,0.15003429]
[1718622013783,0.0601,65857.0,65854.0,0.17003429]
[1718622014011,0.1354,65862.0,65857.0,0.171843]
[1718622014220,0.13625,65865.0,65861.0,0.151834]
[1718622014486,0.152677,65865.0,65862.0,0.2013975]
[1718622014729,0.152677,65865.0,65864.0,0.02]
[1718622014951,0.00085,65865.0,65864.0,0.14603429]
[1718622015176,0.00085,65865.0,65864.0,0.29812208]
[1718622015348,0.00085,65865.0,65864.0,0.38247899]
[1718622015722,0.00801704,65865.0,65864.0,0.38247899]
[1718622015920,0.15984204,65865.0,65864.0,0.38247899]
[1718622016129,0.15984204,65865.0,65864.0,0.27812208]
[1718622016898,0.76714404,65865.0,65864.0,0.27812208]
[1718622017043,0.76714404,65865.0,65864.0,0.28712208]
[1718622017251,0.46349304,65865.0,65864.0,0.28712208]
[1718622017455,0.76714404,65865.0,65864.0,0.29012208]
[1718622017658,0.76714404,65865.0,65864.0,0.33294429]
[1718622019326,1.07079504,65865.0,65864.0,0.33294429]
[1718622019538,0.76714404,65865.0,65864.0,0.33294429]
[1718622020742,0.00801704,65865.0,65864.0,0.35294429]
[1718622020949,0.00801704,65865.0,65864.0,0.50477229]
[1718622021149,0.00085,65865.0,65864.0,0.51684429]
[1718622021562,0.00085,65865.0,65864.0,0.97232829]
[1718622022003,0.00085,65865.0,65864.0,0.66867229]
[1718622022643,0.00808612,65865.0,65864.0,0.66867229]
[1718622022845,0.00085,65865.0,65864.0,0.49684429]
[1718622023067,0.00808612,65865.0,65864.0,0.51684429]
[1718622023274,0.00085,65865.0,65864.0,0.51684429]
[1718622023479,0.00808612,65865.0,65864.0,0.51684429]
[1718622023676,0.00085,65865.0,65864.0,0.51684429]
[1718622023917,0.00808612,65865.0,65864.0,0.49684429]
[1718622024124,0.00085,65865.0,65864.0,0.51684429]
[1718622024332,0.00808612,65865.0,65864.0,0.51684429]
[1718622024557,0.00085,65865.0,65864.0,0.97232829]
[1718622024760,0.00808612,65865.0,65864.0,0.97232829]
[1718622025175,0.00085,65865.0,65864.0,0.97232829]
[1718622025378,0.00085,65865.0,65864.0,0.51684429]
[1718622025592,0.00085,65865.0,65864.0,0.97251105]
[1718622025801,0.00808612,65865.0,65864.0,1.32142956]
[1718622026015,0.00085,65865.0,65864.0,1.46521849]
[1718622026265,0.00085,65865.0,65864.0,1.83676825]
[1718622026535,0.00085,65865.0,65864.0,1.85939951]
[1718622026764,0.00085,65865.0,65864.0,1.95939951]
[1718622026992,0.00085,65865.0,65864.0,1.95039951]
[1718622027408,0.00085,65865.0,65864.0,1.86887449]
[1718622027638,0.00085,65865.0,65864.0,1.87387449]
[1718622028051,0.00085,65865.0,65864.0,1.86887449]
[1718622028255,0.00085,65865.0,65864.0,1.67982305]
[1718622028473,0.00085,65865.0,65864.0,1.7478491]
[1718622028680,0.00085,65865.0,65864.0,1.95090054]
[1718622028860,0.00085,65865.0,65864.0,1.7618491]
[1718622029097,0.00085,65865.0,65864.0,1.8618491]
[1718622029298,0.00085,65865.0,65864.0,1.93890054]
[1718622029504,0.00085,65865.0,65864.0,1.68182305]